fUSD/lending_fUSD_20250124
["ID","MTS","AMOUNT","RATE_DAILY","PERIOD"]
[350244325,1737735037818,-1516.0,0.000186,2]
[350244326,1737735037827,-2022.09554724,0.00018628,2]
[350244327,1737735037837,-150.0,0.00018649,2]
[350244328,1737735037848,-150.0,0.00018652,2]
[350244329,1737735037859,-252.97,0.0001866,2]
[350244330,1737735037872,-2022.09554724,0.00018664,2]
[350244331,1737735037882,-150.0,0.00018665,2]
[350244332,1737735037893,-150.0,0.00018666,2]
[350244333,1737735037902,-500.0,0.0001867,2]
[350244334,1737735037914,-500.0,0.0001867,2]
[350244335,1737735037924,-500.0,0.0001867,2]
[350244336,1737735037934,-4160.93843279,0.00018671,2]
[350244337,1737735037945,-150.0,0.00018674,2]
[350244338,1737735037955,-150.0,0.00018674,2]
[350244339,1737735037967,-7302.18459997,0.00018674,2]
[350244340,1737735037976,-258.76,0.00018683,2]
[350244341,1737735037985,-1000.0,0.00018686,2]
[350244342,1737735037994,-150.0,0.00018689,2]
[350244343,1737735038004,-250.00187611,0.00018691,2]
[350244344,1737735038014,-509.51,0.00018692,2]
[350244345,1737735038023,-577.72,0.00018692,2]
[350244346,1737735038034,-580.64,0.00018692,2]
[350244347,1737735038043,-1705.53,0.00018692,2]
[350244348,1737735038055,-2554.5,0.00018692,2]
[350244349,1737735038064,-676.513947,0.00018692,2]
[350244350,1737735038075,-956.9,0.00018692,2]
[350244351,1737735038085,-2012.13,0.00018692,2]
[350244353,1737735038095,-622.12,0.00018692,2]
[350244354,1737735038105,-846.729176,0.00018692,2]
[350244355,1737735038114,-500.0,0.00018692,2]
[350244356,1737735038124,-564.16,0.00018692,2]
[350244357,1737735038133,-500.0,0.00018692,2]
[350244358,1737735038143,-1121.35,0.00018692,2]
[350244359,1737735038153,-871.63,0.00018692,2]
[350244360,1737735038163,-1370.61,0.00018692,2]
[350244361,1737735038172,-705.29,0.00018692,2]
[350244362,1737735038183,-1962.44,0.00018692,2]
[350244363,1737735038193,-718.17,0.00018692,2]
[350244365,1737735038203,-619.05,0.00018692,2]
[350244367,1737735038213,-865.04,0.00018692,2]
[350244368,1737735038223,-500.0,0.00018692,2]
[350244370,1737735038233,-2217.77,0.00018692,2]
[350244372,1737735038243,-722.1,0.00018692,2]
[350244374,1737735038252,-562.1,0.00018692,2]
[350244376,1737735038262,-2901.51,0.00018692,2]
[350244377,1737735038272,-503.38,0.00018692,2]
[350244378,1737735038281,-1511.51,0.00018692,2]
[350244379,1737735038292,-500.0,0.00018692,2]
[350244380,1737735038302,-1656.27,0.00018692,2]
[350244381,1737735038312,-831.3,0.00018692,2]
[350244382,1737735038321,-1027.33,0.00018692,2]
[350244383,1737735038331,-1185.98,0.00018692,2]
[350244384,1737735038341,-985.79,0.00018692,2]
[350244385,1737735038351,-500.0,0.00018692,2]
[350244386,1737735038361,-2108.39,0.00018692,2]
[350244387,1737735038371,-1080.47,0.00018692,2]
[350244388,1737735038380,-838.77,0.00018692,2]
[350244389,1737735038390,-538.96,0.00018692,2]
[350244390,1737735038400,-500.0,0.00018692,2]
[350244391,1737735038409,-578.58,0.00018692,2]
[350244392,1737735038419,-2039.23,0.00018692,2]
[350244393,1737735038428,-500.0,0.00018692,2]
[350244394,1737735038437,-1068.15,0.00018692,2]
[350244395,1737735038446,-204.92660122,0.00018692,2]
[350244396,1737735038459,-295.07339878,0.00018692,2]
[350244397,1737735038471,-1155.96,0.00018692,2]
[350244398,1737735038481,-2273.11,0.00018692,2]
[350244399,1737735038490,-295.52547122,0.00018692,2]
[350244400,1737735038502,-1043.04452878,0.00018692,2]
[350244401,1737735038512,-500.0,0.00018692,2]
[350244402,1737735038522,-3483.22,0.00018692,2]
[350244403,1737735038532,-500.0,0.00018692,2]
[350244404,1737735038541,-872.95,0.00018692,2]
[350244405,1737735038551,-1147.06,0.00018692,2]
[350244406,1737735038560,-500.0,0.00018692,2]
[350244407,1737735038576,-500.0,0.00018692,2]
[350244408,1737735038586,-1277.07,0.00018692,2]
[350244409,1737735038595,-1534.15548286,0.00018692,2]
[350244410,1737735038624,-980.22,0.00018692,2]
[350244411,1737735038644,-475.01451714,0.00018692,2]
[350244412,1737735038653,-644.25,0.00018692,2]
[350244413,1737735038663,-500.0,0.00018692,2]
[350244414,1737735038672,-871.11,0.00018692,2]
[350244415,1737735038681,-500.0,0.00018693,2]
[350244416,1737735038691,-500.0,0.00018693,2]
[350244417,1737735038703,-500.0,0.00018693,2]
[350244418,1737735038714,-500.0,0.00018693,2]
[350244419,1737735038723,-500.0,0.00018693,2]
[350244420,1737735038733,-500.0,0.00018693,2]
[350244421,1737735038742,-500.0,0.00018693,2]
[350244422,1737735038751,-500.0,0.00018693,2]
[350244423,1737735038761,-500.0,0.00018693,2]
[350244424,1737735038771,-500.0,0.00018693,2]
[350244425,1737735038781,-500.0,0.00018693,2]
[350244426,1737735038791,-500.0,0.00018693,2]
[350244427,1737735038800,-500.0,0.00018693,2]
[350244428,1737735038810,-500.0,0.00018693,2]
[350244429,1737735038819,-500.0,0.00018693,2]
[350244430,1737735038830,-500.0,0.00018693,2]
[350244431,1737735038839,-500.0,0.00018693,2]
[350244432,1737735038849,-500.0,0.00018693,2]
[350244433,1737735038859,-500.0,0.00018693,2]
[350244434,1737735038872,-511.03830902,0.00018693,2]
[350244435,1737735038882,-500.0,0.00018693,2]
[350244436,1737735038891,-500.0,0.00018693,2]
[350244437,1737735038902,-203.14020915,0.00018693,2]
[350244438,1737735038912,-500.0,0.00018693,2]
[350244439,1737735038922,-203.15382012,0.00018693,2]
[350244440,1737735038940,-437.34486716,0.00018693,2]
[350244441,1737735038951,-500.0,0.00018693,2]
[350244442,1737735038962,-500.0,0.00018693,2]
[350244443,1737735038972,-500.0,0.00018693,2]
[350244444,1737735038982,-500.0,0.00018693,2]
[350244445,1737735038991,-500.0,0.00018693,2]
[350244446,1737735039001,-500.0,0.00018693,2]
[350244447,1737735039011,-500.0,0.00018693,2]
[350244448,1737735039021,-677.93,0.00018693,2]
[350244449,1737735039031,-384.82083424,0.00018693,2]
[350244450,1737735039046,-115.17916576,0.00018693,2]
[350244451,1737735039056,-585.18313291,0.00018693,2]
[350244452,1737735039072,-74.89686709,0.00018693,2]
[350244453,1737735039081,-500.0,0.00018693,2]
[350244454,1737735039091,-500.0,0.00018693,2]
[350244455,1737735039101,-500.0,0.00018693,2]
[350244456,1737735039110,-500.0,0.00018693,2]
[350244457,1737735039120,-500.0,0.00018693,2]
[350244458,1737735039129,-589.35,0.00018693,2]
[350244459,1737735039139,-500.0,0.00018693,2]
[350244460,1737735039149,-500.0,0.00018693,2]
[350244461,1737735039158,-500.0,0.00018693,2]
[350244462,1737735039168,-500.0,0.00018693,2]
[350244463,1737735039178,-500.0,0.00018693,2]
[350244464,1737735039187,-500.0,0.00018693,2]
[350244465,1737735039197,-770.43,0.00018693,2]
[350244466,1737735039210,-500.0,0.00018693,2]
[350244467,1737735039222,-500.0,0.00018693,2]
[350244468,1737735039234,-509.00722959,0.00018693,2]
[350244469,1737735039243,-500.0,0.00018693,2]
[350244470,1737735039252,-166.78928183,0.00018693,2]
[350244471,1737735039262,-500.0,0.00018693,2]
[350244472,1737735039271,-500.0,0.00018693,2]
[350244473,1737735039281,-500.0,0.00018693,2]
[350244474,1737735039294,-500.0,0.00018693,2]
[350244475,1737735039307,-500.0,0.00018693,2]
[350244476,1737735039318,-500.0,0.00018693,2]
[350244477,1737735039331,-500.0,0.00018693,2]
[350244478,1737735039342,-500.0,0.00018693,2]
[350244479,1737735039352,-500.0,0.00018693,2]
[350244480,1737735039362,-513.79,0.00018693,2]
[350244481,1737735039372,-500.0,0.00018693,2]
[350244482,1737735039381,-500.0,0.00018693,2]
[350244483,1737735039391,-275.213206,0.00018693,2]
[350244484,1737735039401,-500.0,0.00018693,2]
[350244485,1737735039547,-500.0,0.00018693,2]
[350244486,1737735039584,-500.0,0.00018693,2]
[350244487,1737735039595,-500.0,0.00018693,2]
[350244488,1737735039604,-500.0,0.00018693,2]
[350244489,1737735039614,-440.40264742,0.00018693,2]
[350244490,1737735039624,-500.0,0.00018693,2]
[350244491,1737735039634,-580.89,0.00018693,2]
[350244492,1737735039644,-500.0,0.00018693,2]
[350244493,1737735039654,-500.0,0.00018693,2]
[350244494,1737735039664,-247.0790597,0.00018693,2]
[350244495,1737735039678,-367.2109403,0.00018693,2]
[350244496,1737735039688,-426.49455111,0.00018693,2]
[350244497,1737735039698,-500.0,0.00018693,2]
[350244498,1737735039707,-500.0,0.00018693,2]
[350244500,1737735039718,-500.0,0.00018693,2]
[350244502,1737735039728,-500.0,0.00018693,2]
[350244504,1737735039738,-500.0,0.00018693,2]
[350244507,1737735039747,-500.0,0.00018693,2]
[350244508,1737735039757,-152.03956248,0.00018693,2]
[350244510,1737735039766,-254.25494611,0.00018693,2]
[350244512,1737735039779,-312.55505389,0.00018693,2]
[350244514,1737735039791,-500.0,0.00018693,2]
[350244516,1737735039800,-500.0,0.00018693,2]
[350244517,1737735039809,-509.79727025,0.00018693,2]
[350244519,1737735039819,-767.86,0.00018693,2]
[350244521,1737735039829,-500.0,0.00018693,2]
[350244523,1737735039838,-13.3586782,0.00018693,2]
[350244525,1737735039851,-497.07170081,0.00018693,2]
[350244527,1737735039863,-654.02,0.00018693,2]
[350244529,1737735039874,-500.0,0.00018693,2]
[350244531,1737735039884,-500.0,0.00018693,2]
[350244532,1737735039894,-504.48520851,0.00018693,2]
[350244533,1737735039905,-500.0,0.00018693,2]
[350244534,1737735039915,-500.0,0.00018693,2]
[350244535,1737735039926,-500.0,0.00018693,2]
[350244536,1737735039936,-500.0,0.00018693,2]
[350244537,1737735039946,-500.0,0.00018693,2]
[350244538,1737735039956,-500.0,0.00018693,2]
[350244539,1737735039967,-500.0,0.00018693,2]
[350244540,1737735039977,-500.0,0.00018693,2]
[350244541,1737735039988,-500.0,0.00018693,2]
[350244542,1737735039998,-500.0,0.00018693,2]
[350244543,1737735040008,-500.0,0.00018693,2]
[350244544,1737735040018,-500.0,0.00018693,2]
[350244545,1737735040030,-500.0,0.00018693,2]
[350244546,1737735040040,-500.0,0.00018693,2]
[350244547,1737735040049,-498.88196179,0.00018693,2]
[350244548,1737735040059,-500.0,0.00018693,2]
[350244549,1737735040069,-500.0,0.00018693,2]
[350244550,1737735040079,-106.79154398,0.00018693,2]
[350244553,1737735040426,-246.48,0.00018594,2]
[350244554,1737735040436,-393.20845602,0.00018693,2]
[350244555,1737735040446,-500.0,0.00018693,2]
[350244556,1737735040455,-500.0,0.00018693,2]
[350244557,1737735040465,-500.0,0.00018693,2]
[350244558,1737735040475,-500.0,0.00018693,2]
[350244559,1737735040485,-500.0,0.00018693,2]
[350244560,1737735040495,-500.0,0.00018693,2]
[350244561,1737735040504,-571.35262411,0.00018693,2]
[350244562,1737735040514,-500.0,0.00018693,2]
[350244563,1737735040524,-502.34969452,0.00018693,2]
[350244564,1737735040533,-557.89527563,0.00018693,2]
[350244565,1737735040543,-500.0,0.00018693,2]
[350244566,1737735040553,-500.0,0.00018693,2]
[350244567,1737735040563,-500.0,0.00018693,2]
[350244568,1737735040572,-500.0,0.00018693,2]
[350244569,1737735040582,-500.0,0.00018693,2]
[350244570,1737735040593,-500.0,0.00018693,2]
[350244571,1737735040603,-500.0,0.00018693,2]
[350244572,1737735040616,-500.0,0.00018693,2]
[350244573,1737735040633,-500.0,0.00018693,2]
[350244574,1737735040653,-500.0,0.00018693,2]
[350244575,1737735040666,-500.0,0.00018693,2]
[350244576,1737735040684,-500.0,0.00018693,2]
[350244577,1737735040694,-500.0,0.00018693,2]
[350244578,1737735040705,-500.0,0.00018693,2]
[350244579,1737735040714,-509.94,0.00018693,2]
[350244580,1737735040726,-297.32737138,0.00018693,2]
[350244581,1737735040738,-500.0,0.00018693,2]
[350244582,1737735040748,-512.78522341,0.00018693,2]
[350244583,1737735040760,-500.0,0.00018693,2]
[350244584,1737735040770,-798.82,0.00018693,2]
[350244585,1737735040781,-500.0,0.00018693,2]
[350244586,1737735040791,-652.05,0.00018693,2]
[350244587,1737735040801,-207.80164799,0.00018693,2]
[350244588,1737735040812,-500.0,0.00018693,2]
[350244589,1737735040822,-500.0,0.00018693,2]
[350244590,1737735040833,-500.0,0.00018693,2]
[350244591,1737735040847,-846.33,0.00018693,2]
[350244592,1737735040861,-770.06,0.00018693,2]
[350244593,1737735040871,-500.0,0.00018693,2]
[350244594,1737735040882,-514.03695074,0.00018693,2]
[350244595,1737735040893,-937.47,0.00018693,2]
[350244596,1737735040903,-500.0,0.00018693,2]
[350244597,1737735040913,-500.0,0.00018693,2]
[350244598,1737735040923,-571.67981267,0.00018693,2]
[350244599,1737735040933,-672.05,0.00018693,2]
[350244600,1737735040943,-500.0,0.00018693,2]
[350244601,1737735040953,-500.0,0.00018693,2]
[350244602,1737735040962,-500.0,0.00018693,2]
[350244603,1737735040975,-500.0,0.00018693,2]
[350244604,1737735040984,-500.0,0.00018693,2]
[350244605,1737735040994,-500.0,0.00018693,2]
[350244606,1737735041003,-462.10094892,0.00018693,2]
[350244607,1737735041013,-692.99,0.00018693,2]
[350244608,1737735041024,-500.0,0.00018693,2]
[350244609,1737735041034,-511.92072196,0.00018693,2]
[350244610,1737735041044,-500.0,0.00018693,2]
[350244611,1737735041054,-500.0,0.00018693,2]
[350244612,1737735041064,-500.0,0.00018693,2]
[350244613,1737735041074,-506.95369606,0.00018693,2]
[350244614,1737735041084,-500.0,0.00018693,2]
[350244615,1737735041093,-500.0,0.00018693,2]
[350244616,1737735041103,-500.0,0.00018693,2]
[350244617,1737735041113,-500.0,0.00018693,2]
[350244618,1737735041122,-500.0,0.00018693,2]
[350244619,1737735041132,-500.0,0.00018693,2]
[350244620,1737735041142,-500.0,0.00018693,2]
[350244621,1737735041151,-500.0,0.00018693,2]
[350244622,1737735041162,-500.0,0.00018693,2]
[350244623,1737735041171,-408.46642065,0.00018693,2]
[350244624,1737735041181,-1011.61,0.00018693,2]
[350244625,1737735041191,-500.0,0.00018693,2]
[350244626,1737735041200,-500.0,0.00018693,2]
[350244627,1737735041210,-500.0,0.00018693,2]
[350244628,1737735041223,-500.0,0.00018693,2]
[350244629,1737735041233,-500.0,0.00018693,2]
[350244630,1737735041243,-954.97,0.00018693,2]
[350244631,1737735041252,-512.22036521,0.00018693,2]
[350244632,1737735041262,-500.0,0.00018693,2]
[350244633,1737735041271,-500.0,0.00018693,2]
[350244634,1737735041281,-594.05,0.00018693,2]
[350244635,1737735041290,-500.0,0.00018693,2]
[350244636,1737735041300,-614.05,0.00018693,2]
[350244637,1737735041310,-652.47,0.00018693,2]
[350244638,1737735041320,-506.55022243,0.00018693,2]
[350244639,1737735041330,-601.35735356,0.00018693,2]
[350244640,1737735041341,-500.0,0.00018693,2]
[350244641,1737735041351,-500.0,0.00018693,2]
[350244642,1737735041361,-500.0,0.00018693,2]
[350244643,1737735041371,-500.0,0.00018693,2]
[350244644,1737735041380,-500.0,0.00018693,2]
[350244645,1737735041390,-500.0,0.00018693,2]
[350244646,1737735041399,-500.0,0.00018693,2]
[350244647,1737735041409,-392.63495278,0.00018693,2]
[350244648,1737735041419,-849.3,0.00018693,2]
[350244649,1737735041428,-500.0,0.00018693,2]
[350244650,1737735041438,-507.6491891,0.00018693,2]
[350244651,1737735041447,-500.0,0.00018693,2]
[350244652,1737735041456,-708.17,0.00018693,2]
[350244653,1737735041467,-511.38,0.00018693,2]
[350244654,1737735041478,-500.0,0.00018693,2]
[350244655,1737735041488,-833.01,0.00018693,2]
[350244656,1737735041497,-681.69,0.00018693,2]
[350244657,1737735041507,-500.0,0.00018693,2]
[350244658,1737735041516,-500.0,0.00018693,2]
[350244659,1737735041526,-500.0,0.00018693,2]
[350244660,1737735041535,-500.0,0.00018693,2]
[350244661,1737735041545,-560.31,0.00018693,2]
[350244662,1737735041554,-500.0,0.00018693,2]
[350244663,1737735041563,-500.0,0.00018693,2]
[350244664,1737735041573,-500.0,0.00018693,2]
[350244665,1737735041582,-500.0,0.00018693,2]
[350244666,1737735041592,-245.69,0.00018693,2]
[350244667,1737735041601,-342.95,0.00018693,2]
[350244668,1737735041610,-805.26,0.00018693,2]
[350244669,1737735041620,-511.58551769,0.00018693,2]
[350244670,1737735041630,-500.0,0.00018693,2]
[350244671,1737735041639,-500.0,0.00018693,2]
[350244672,1737735041649,-697.85,0.00018693,2]
[350244673,1737735041658,-500.0,0.00018693,2]
[350244674,1737735041667,-500.0,0.00018693,2]
[350244675,1737735041677,-500.0,0.00018693,2]
[350244676,1737735041686,-500.0,0.00018693,2]
[350244677,1737735041695,-500.0,0.00018693,2]
[350244678,1737735041705,-500.0,0.00018693,2]
[350244679,1737735041715,-580.02,0.00018693,2]
[350244680,1737735041728,-500.0,0.00018693,2]
[350244681,1737735041737,-500.0,0.00018693,2]
[350244682,1737735041747,-500.0,0.00018693,2]
[350244683,1737735041758,-500.0,0.00018693,2]
[350244684,1737735041768,-500.0,0.00018693,2]
[350244685,1737735041779,-500.0,0.00018693,2]
[350244686,1737735041789,-669.97,0.00018693,2]
[350244687,1737735041799,-500.0,0.00018693,7]
[350244688,1737735041809,-500.0,0.00018693,2]
[350244689,1737735041819,-500.0,0.00018693,2]
[350244690,1737735041829,-501.02380908,0.00018693,2]
[350244691,1737735041839,-500.0,0.00018693,2]
[350244692,1737735041848,-500.0,0.00018693,2]
[350244693,1737735041858,-556.37,0.00018693,2]
[350244694,1737735041871,-500.0,0.00018693,2]
[350244695,1737735041881,-500.0,0.00018693,2]
[350244696,1737735041891,-635.29011111,0.00018693,2]
[350244697,1737735041903,-500.0,0.00018693,2]
[350244698,1737735041914,-500.0,0.00018693,2]
[350244699,1737735041924,-500.0,0.00018693,2]
[350244700,1737735041934,-1151.25,0.00018693,2]
[350244701,1737735041945,-582.4,0.00018693,2]
[350244702,1737735041955,-500.0,0.00018693,2]
[350244703,1737735041965,-500.0,0.00018693,2]
[350244704,1737735041977,-500.0,0.00018693,2]
[350244705,1737735041986,-500.0,0.00018693,2]
[350244706,1737735041996,-500.0,0.00018693,2]
[350244707,1737735042005,-500.0,0.00018693,2]
[350244708,1737735042015,-500.0,0.00018693,2]
[350244709,1737735042025,-500.0,0.00018693,2]
[350244710,1737735042035,-500.0,0.00018693,2]
[350244711,1737735042045,-500.0,0.00018693,2]
[350244712,1737735042054,-500.0,0.00018693,2]
[350244713,1737735042064,-1417.9,0.00018693,2]
[350244714,1737735042074,-500.0,0.00018693,2]
[350244715,1737735042084,-502.7269531,0.00018693,2]
[350244716,1737735042093,-656.44,0.00018693,2]
[350244717,1737735042103,-582.99,0.00018693,2]
[350244718,1737735042113,-500.0,0.00018693,2]
[350244719,1737735042123,-500.0,0.00018693,2]
[350244720,1737735042133,-500.0,0.00018693,2]
[350244721,1737735042143,-500.0,0.00018693,2]
[350244722,1737735042153,-544.3,0.00018693,2]
[350244723,1737735042293,-500.0,0.00018693,2]
[350244724,1737735042303,-500.0,0.00018693,2]
[350244725,1737735042312,-500.0,0.00018693,2]
[350244726,1737735042324,-2000.0,0.00018693,2]
[350244727,1737735042334,-2000.0,0.00018693,2]
[350244728,1737735042344,-2000.0,0.00018693,2]
[350244729,1737735042354,-687.28,0.00018693,2]
[350244730,1737735042364,-1083.19,0.00018693,2]
[350244731,1737735042373,-500.0,0.00018693,2]
[350244732,1737735042382,-500.0,0.00018693,2]
[350244733,1737735042392,-634.65,0.00018693,2]
[350244734,1737735042401,-500.0,0.00018693,2]
[350244735,1737735042411,-500.0,0.00018693,2]
[350244736,1737735042421,-1858.23,0.00018693,2]
[350244737,1737735042431,-490.99464382,0.00018693,2]
[350244738,1737735042440,-500.0,0.00018693,2]
[350244739,1737735042449,-506.51095282,0.00018693,2]
[350244740,1737735042459,-500.0,0.00018693,2]
[350244741,1737735042470,-500.0,0.00018693,2]
[350244742,1737735042479,-516.81,0.00018693,2]
[350244743,1737735042489,-500.0,0.00018693,2]
[350244744,1737735042499,-391.22927608,0.00018693,2]
[350244745,1737735042508,-1003.94,0.00018693,2]
[350244746,1737735042518,-500.0,0.00018693,2]
[350244747,1737735042527,-274.8712975,0.00018693,2]
[350244749,1737735042537,-695.07,0.00018693,2]
[350244750,1737735042546,-500.0,0.00018693,2]
[350244751,1737735042555,-500.0,0.00018693,2]
[350244752,1737735042565,-500.0,0.00018693,2]
[350244754,1737735042575,-500.0,0.00018693,2]
[350244755,1737735042584,-530.99,0.00018693,2]
[350244756,1737735042593,-500.0,0.00018693,2]
[350244757,1737735042603,-500.0,0.00018693,2]
[350244758,1737735042613,-500.0,0.00018693,2]
[350244759,1737735042622,-500.0,0.00018693,2]
[350244760,1737735042632,-500.0,0.00018693,2]
[350244761,1737735042641,-4029.1,0.00018693,2]
[350244762,1737735042650,-500.0,0.00018693,2]
[350244763,1737735042660,-500.0,0.00018693,2]
[350244764,1737735042669,-500.0,0.00018693,2]
[350244765,1737735042679,-500.0,0.00018693,2]
[350244766,1737735042688,-500.0,0.00018693,2]
[350244767,1737735042697,-500.0,0.00018693,2]
[350244768,1737735042707,-530.29755402,0.00018693,2]
[350244769,1737735042717,-500.0,0.00018693,2]
[350244770,1737735042727,-500.0,0.00018693,2]
[350244771,1737735042737,-1624.84,0.00018693,2]
[350244772,1737735042746,-500.0,0.00018693,2]
[350244773,1737735042755,-500.0,0.00018693,2]
[350244774,1737735042764,-672.83,0.00018693,2]
[350244775,1737735042774,-500.0,0.00018693,2]
[350244776,1737735042784,-500.0,0.00018693,2]
[350244777,1737735042794,-310.8919895,0.00018693,2]
[350244778,1737735042804,-500.0,0.00018693,2]
[350244779,1737735042814,-500.0,0.00018693,2]
[350244780,1737735042823,-500.0,0.00018693,2]
[350244781,1737735042833,-500.0,0.00018693,2]
[350244782,1737735042843,-2230.2,0.00018693,2]
[350244783,1737735042853,-496.76343741,0.00018693,2]
[350244784,1737735042865,-500.0,0.00018693,2]
[350244785,1737735042874,-500.0,0.00018693,2]
[350244786,1737735042884,-500.0,0.00018693,2]
[350244787,1737735042894,-500.0,0.00018693,2]
[350244788,1737735042905,-500.0,0.00018693,2]
[350244789,1737735042915,-500.0,0.00018693,2]
[350244790,1737735042925,-508.70596901,0.00018693,2]
[350244791,1737735042935,-500.0,0.00018693,2]
[350244792,1737735042946,-500.0,0.00018693,2]
[350244793,1737735042956,-559.05,0.00018693,2]
[350244794,1737735042967,-500.0,0.00018693,2]
[350244795,1737735042977,-500.0,0.00018693,2]
[350244796,1737735042987,-1209.66,0.00018693,2]
[350244797,1737735042997,-500.0,0.00018693,2]
[350244798,1737735043007,-500.0,0.00018693,2]
[350244799,1737735043017,-1414.61,0.00018693,2]
[350244800,1737735043026,-500.0,0.00018693,2]
[350244801,1737735043036,-500.0,0.00018693,2]
[350244802,1737735043046,-500.0,0.00018693,2]
[350244803,1737735043056,-500.0,0.00018693,2]
[350244804,1737735043067,-3342.18,0.00018693,2]
[350244805,1737735043077,-500.0,0.00018693,2]
[350244806,1737735043086,-500.0,0.00018693,2]
[350244807,1737735043095,-500.0,0.00018693,2]
[350244808,1737735043104,-500.0,0.00018693,2]
[350244809,1737735043114,-500.0,0.00018693,2]
[350244810,1737735043123,-500.0,0.00018693,2]
[350244811,1737735043133,-500.0,0.00018693,2]
[350244812,1737735043143,-500.0,0.00018693,2]
[350244814,1737735043152,-500.0,0.00018693,2]
[350244815,1737735043162,-500.0,0.00018693,2]
[350244816,1737735043172,-2092.8,0.00018693,2]
[350244817,1737735043182,-500.0,0.00018693,2]
[350244818,1737735043191,-500.0,0.00018693,2]
[350244819,1737735043201,-500.0,0.00018693,2]
[350244821,1737735043212,-500.0,0.00018693,2]
[350244822,1737735043223,-502.52578093,0.00018693,2]
[350244823,1737735043233,-500.0,0.00018693,2]
[350244824,1737735043243,-500.0,0.00018693,2]
[350244825,1737735043253,-521.83,0.00018693,2]
[350244826,1737735043263,-500.0,0.00018693,2]
[350244827,1737735043273,-1013.22,0.00018693,2]
[350244828,1737735043283,-500.0,0.00018693,2]
[350244829,1737735043292,-500.0,0.00018693,2]
[350244830,1737735043302,-210.33792228,0.00018693,2]
[350244831,1737735043312,-500.0,0.00018693,2]
[350244832,1737735043322,-500.0,0.00018693,2]
[350244833,1737735043332,-500.0,0.00018693,2]
[350244834,1737735043341,-926.77,0.00018693,2]
[350244835,1737735043351,-500.0,0.00018693,2]
[350244836,1737735043362,-500.0,0.00018693,2]
[350244837,1737735043371,-500.0,0.00018693,2]
[350244838,1737735043381,-926.0,0.00018693,2]
[350244839,1737735043390,-500.0,0.00018693,2]
[350244840,1737735043400,-6114.66,0.00018693,2]
[350244841,1737735043410,-500.0,0.00018693,2]
[350244842,1737735043419,-500.0,0.00018693,2]
[350244843,1737735043429,-500.0,0.00018693,2]
[350244844,1737735043439,-500.0,0.00018693,2]
[350244845,1737735043448,-285.45543467,0.00018694,2]
[350244846,1737735043458,-501.81490827,0.00018694,2]
[350244847,1737735043468,-500.0,0.00018694,2]
[350244848,1737735043477,-500.0,0.00018694,2]
[350244849,1737735043487,-500.0,0.00018694,2]
[350244850,1737735043497,-500.0,0.00018694,2]
[350244851,1737735043507,-511.51017115,0.00018694,2]
[350244852,1737735043516,-500.0,0.00018694,2]
[350244853,1737735043526,-334.01453175,0.00018694,2]